bitfinex-derivatives/quotes_BNBF0:USTF0_20250220
["timestamp","ask_amount","ask_price","bid_price","bid_amount"]
[1740064431811,0.28286184,649.87,647.6,1.14925012]
[1740064432014,0.28286184,649.91,647.6,1.14925012]
[1740064432210,0.28286184,649.9,647.6,1.14925012]
[1740064432407,0.28286184,649.89,647.6,1.14925012]
[1740064432610,0.28286184,649.91,647.6,1.14925012]
[1740064432813,0.28286184,649.9,647.6,1.14925012]
[1740064433014,0.28286184,649.89,647.6,1.14925012]
[1740064433214,1.60893235,649.92,647.6,1.14925012]
[1740064433215,0.28286184,649.88,647.6,1.14925012]
[1740064433416,0.28286184,649.87,647.6,1.14925012]
[1740064433716,0.28286184,649.86,647.6,1.14925012]
[1740064433916,0.28286184,649.91,647.6,1.14925012]
[1740064434108,0.28286184,649.9,647.6,1.14925012]
[1740064434313,1.60883317,649.9,647.6,1.14925012]
[1740064434811,0.28288261,649.89,647.6,1.14925012]
[1740064435316,1.1357625,649.87,647.69,1.14925012]
[1740064435516,0.28288261,649.86,647.69,1.14925012]
[1740064436216,1.1357625,649.87,647.69,1.14925012]
[1740064436416,0.28287558,649.86,647.69,1.14925012]
[1740064438018,1.1357625,649.87,647.69,1.14925012]
[1740064438318,1.1357625,649.55,647.97,1.14925012]
[1740064441414,1.1357625,649.37,648.11,1.14925012]
[1740064443719,1.1357625,649.39,648.1,1.14925012]
[1740064444719,1.60880218,649.38,648.1,1.14925012]
[1740064446619,1.60880218,649.38,647.82,1.15123878]
[1740064446620,1.60880218,649.38,648.06,1.14925012]
[1740064449224,1.60880218,649.38,647.39,2.35044586]
[1740064449225,1.60880218,649.38,648.11,1.14925012]
[1740064451318,1.60880218,649.38,647.88,1.15123878]
[1740064451319,1.60880218,649.38,648.13,1.14925012]
[1740064454434,1.60880218,649.38,647.47,2.35044586]
[1740064454435,1.60880218,649.38,648.15,1.14925012]
[1740064457229,1.60880218,649.38,648.31,1.14925012]
[1740064459836,1.60880218,649.38,648.26,1.14925012]
[1740064462966,1.60880218,649.38,648.25,1.14925012]
[1740064465041,1.60880218,649.38,648.19,1.14925012]
[1740064470649,1.60880218,649.38,648.26,1.14925012]
[1740064473848,3.24320225,650.26,648.25,1.14925012]
[1740064474046,3.24320225,650.25,648.25,1.14925012]
[1740064474350,3.24320225,650.24,648.25,1.14925012]
[1740064474646,3.24320225,650.23,648.25,1.14925012]
[1740064474846,3.24320225,650.22,648.25,1.14925012]
[1740064475045,3.24320225,650.21,648.25,1.14925012]
[1740064475244,3.24320225,650.2,648.25,1.14925012]
[1740064475449,3.24320225,650.19,648.25,1.14925012]
[1740064475649,3.24320225,650.18,648.25,1.14925012]
[1740064475952,3.24320225,650.17,648.25,1.14925012]
[1740064476250,3.24320225,650.16,648.25,1.14925012]
[1740064476449,3.24320225,650.15,648.25,1.14925012]
[1740064476649,2.40416284,650.2,648.29,1.14925012]
[1740064476650,3.24320225,650.14,648.29,1.14925012]
[1740064476943,3.24320225,650.13,648.29,1.14925012]
[1740064477147,3.24320225,650.12,648.29,1.14925012]
[1740064477347,2.40416284,650.12,648.29,1.14925012]
[1740064477548,3.24320225,650.11,648.29,1.14925012]
[1740064477750,3.24320225,650.1,648.29,1.14925012]
[1740064477949,3.24320225,650.09,648.29,1.14925012]
[1740064478146,3.24320225,650.08,648.29,1.14925012]
[1740064478346,3.23688313,650.07,648.29,1.14925012]
[1740064478543,1.1357625,650.32,648.29,1.14925012]
[1740064478750,5.63802366,650.31,648.29,1.14925012]
[1740064478944,3.2371181,650.3,648.29,1.14925012]
[1740064479143,2.40090556,650.31,648.35,1.14925012]
[1740064479144,3.2371181,650.29,648.35,1.14925012]
[1740064479346,3.2371181,650.3,648.35,1.14925012]
[1740064479847,2.40090556,650.31,648.35,1.14925012]
[1740064480047,5.63802366,650.31,648.35,1.14925012]
[1740064480250,5.63802366,650.3,648.35,1.14925012]
[1740064480451,3.2371181,650.29,648.35,1.14925012]
[1740064480650,3.2371181,650.28,648.35,1.14925012]
[1740064480848,3.2371181,650.27,648.35,1.14925012]
[1740064481046,3.2371181,650.26,648.35,1.14925012]
[1740064481247,3.2371181,650.25,648.35,1.14925012]
[1740064481450,3.2371181,650.29,648.35,1.14925012]
[1740064481642,3.2371181,650.28,648.35,1.14925012]
[1740064481848,3.2371181,650.27,648.35,1.14925012]
[1740064482049,3.2371181,650.26,648.46,1.14925012]
[1740064482245,3.2371181,650.27,648.46,1.14925012]
[1740064483751,2.40090556,650.28,648.46,1.14925012]
[1740064483953,3.2371181,650.43,648.46,1.14925012]
[1740064484150,3.2371181,650.42,648.46,1.14925012]
[1740064484455,3.2371181,650.41,648.46,1.14925012]
[1740064484651,3.2371181,650.4,648.47,1.14925012]
[1740064484850,3.2371181,650.39,648.47,1.14925012]
[1740064485155,3.2371181,650.38,648.47,1.14925012]
[1740064485452,3.2371181,650.37,648.47,1.14925012]
[1740064485653,3.2371181,650.36,648.47,1.14925012]
[1740064485850,3.2371181,650.35,648.47,1.14925012]
[1740064486156,3.2371181,650.38,648.47,1.14925012]
[1740064486356,3.51977035,650.37,648.47,1.14925012]
[1740064486558,3.51977035,650.36,648.47,1.14925012]
[1740064486750,3.2371181,650.38,648.47,1.14925012]
[1740064486953,2.40090556,650.39,648.47,1.14925012]
[1740064487156,2.40090556,650.39,647.93,2.35044586]
[1740064487157,1.4184072,650.38,648.48,1.14925012]
[1740064487350,0.2826447,650.37,648.48,1.14925012]
[1740064487551,1.1357625,650.38,648.48,1.14925012]
[1740064487953,3.51977117,650.37,648.48,1.14925012]
[1740064488153,1.1357625,650.38,648.48,1.14925012]
[1740064488356,3.2371181,650.37,648.48,1.14925012]
[1740064488659,3.2371181,650.36,648.48,1.14925012]
[1740064488860,3.2371181,650.35,648.48,1.14925012]
[1740064489053,3.2371181,650.34,648.48,1.14925012]
[1740064489259,3.2371181,650.36,648.48,1.14925012]
[1740064489459,3.2371181,650.35,648.48,1.14925012]
[1740064489654,2.40090556,650.37,648.48,1.14925012]
[1740064490353,1.1357625,650.3,648.48,1.14925012]
[1740064491254,1.60746455,650.29,648.48,1.14925012]
[1740064491861,0.30756455,650.27,648.48,1.14925012]
[1740064492957,0.28272181,650.26,648.27,1.14925012]
[1740064493159,3.22940716,650.25,648.27,1.14925012]
[1740064493354,3.51212897,650.24,648.27,1.14925012]
[1740064493557,3.51212897,650.23,648.27,1.14925012]
[1740064493757,3.51212897,650.22,648.27,1.14925012]
[1740064493957,3.51212897,650.21,648.27,1.14925012]
[1740064494158,3.51212897,650.2,648.27,1.14925012]
[1740064494360,3.51212897,650.19,648.27,1.14925012]
[1740064494561,3.51216788,650.18,648.27,1.14925012]
[1740064494859,3.51216788,650.17,648.27,1.14925012]
[1740064495058,3.51216788,650.16,648.27,1.14925012]
[1740064495258,1.1357625,649.85,648.22,1.14925012]
[1740064496362,0.3077728,649.83,648.22,1.14925012]
[1740064497360,3.22940716,649.82,648.22,1.14925012]
[1740064497562,3.22940716,649.81,648.22,1.14925012]
[1740064497858,5.63031272,649.8,648.22,1.14925012]
[1740064498064,3.22940716,649.79,648.08,1.14925012]
[1740064498263,3.22940716,649.78,648.08,1.14925012]
[1740064498562,3.22940716,649.77,648.08,1.14925012]
[1740064498758,3.22940716,649.79,648.08,1.14925012]
[1740064498964,2.40090556,649.8,648.08,1.14925012]
[1740064499461,5.63031272,649.8,648.08,1.14925012]
[1740064499663,3.22940716,649.79,648.08,1.14925012]
[1740064499858,0.3077728,649.83,648.08,1.14925012]
[1740064500757,3.22940716,649.82,648.08,1.14925012]
[1740064500962,0.30778701,649.8,648.0,1.14925012]
[1740064501163,3.22940716,649.79,648.0,1.14925012]
[1740064501358,2.40090556,649.79,648.0,1.14925012]
[1740064501564,0.30780122,649.77,648.0,1.14925012]
[1740064502157,3.23407735,649.76,648.0,1.14925012]
[1740064502364,0.30781543,649.74,648.0,1.14925012]
[1740064504067,0.30781543,649.74,648.1,1.14925012]
[1740064507469,0.30781543,649.74,647.97,1.14925012]
[1740064509968,0.30781543,649.74,648.21,1.14925012]
[1740064513266,3.23970451,649.73,648.21,1.14925012]
[1740064513569,0.30782964,649.71,648.32,1.14925012]
[1740064513770,3.23970451,649.7,648.32,1.14925012]
[1740064514068,0.30782964,649.71,648.32,1.14925012]
[1740064515869,0.30782964,649.71,648.1,1.15123878]
[1740064515870,0.30782964,649.71,648.17,1.14925012]
[1740064518771,0.30782964,649.71,647.96,1.14925012]
[1740064521771,0.30782964,649.71,648.07,1.14925012]
[1740064525077,0.30782964,649.71,648.05,1.14925012]
[1740064528276,0.30782964,649.71,648.12,1.14925012]
[1740064530580,0.30782964,649.71,648.1,1.14925012]
[1740064531278,1.60756356,649.7,648.1,1.14925012]
[1740064531578,0.30784386,649.68,648.1,1.14925012]
[1740064533778,0.30784386,649.68,648.49,1.14925012]
[1740064547086,1.60756356,649.7,647.97,0.84782391]
[1740064547881,1.60756356,649.7,645.73,6.91644701]
[1740064548079,1.60756356,649.7,647.49,2.22993454]
[1740064548283,1.60756356,649.7,647.49,5.30669132]
[1740064548480,1.60756356,649.7,647.5,2.230156]
[1740064548886,1.60756356,649.7,647.49,3.07675678]
[1740064551884,1.60756356,649.7,645.73,0.30972697]
[1740064555189,1.60756356,649.7,647.49,5.31189155]
[1740064555391,1.60756356,649.7,647.5,2.23223484]
[1740064555689,3.2444363,649.69,647.49,3.07965671]
[1740064555891,3.2444363,649.68,647.49,3.07965671]
[1740064556092,1.60756356,649.7,647.5,2.23253486]
[1740064556290,5.64667935,649.69,647.49,3.07965671]
[1740064556489,3.24436372,649.68,647.49,3.07965671]
[1740064556685,3.24436372,649.67,647.49,3.07965671]
[1740064556885,3.24435516,649.66,647.49,3.07965671]
[1740064557093,2.40231563,649.69,647.49,3.07965671]
[1740064557094,3.24435516,649.65,647.49,3.07965671]
[1740064557287,3.24435516,649.64,647.5,2.23340101]
[1740064557488,2.40231563,649.69,647.49,3.07965671]
[1740064557684,3.24529526,649.68,647.5,2.23330065]
[1740064557885,5.64761089,649.67,647.5,2.23330065]
[1740064558089,3.24529526,649.66,647.5,2.23330065]
[1740064558391,3.24529526,649.65,647.51,3.07965671]
[1740064558584,3.24529526,649.64,647.51,3.07965671]
[1740064558787,3.24572452,649.63,647.51,3.07965671]
[1740064558985,2.40231563,649.67,647.51,3.07965671]
[1740064558986,3.24572452,649.62,647.51,3.07965671]
[1740064559186,2.40231563,649.67,647.51,3.07965671]
[1740064559388,3.24621844,649.66,647.51,3.07965671]
[1740064559591,3.24621844,649.65,647.51,3.07965671]
[1740064559787,3.24621844,649.64,647.51,3.07965671]
[1740064559990,3.24621844,649.63,647.49,3.07965671]
[1740064560187,2.40231563,649.66,647.49,3.07965671]
[1740064560392,3.24595933,649.65,647.49,3.07965671]
[1740064560590,2.40231563,649.66,647.49,3.07965671]
[1740064560790,0.76135316,651.58,647.49,3.07965671]
[1740064560990,4.29060013,651.57,647.49,3.07965671]
[1740064561191,6.69876429,651.56,647.49,3.07965671]
[1740064561389,4.29060013,651.55,647.49,3.07965671]
[1740064561594,4.29060013,651.54,647.49,3.07965671]
[1740064561793,4.29060013,651.53,647.49,3.07965671]
[1740064561989,4.29060013,651.52,647.49,3.07965671]
[1740064562194,4.29060013,651.51,647.5,2.23355675]
[1740064562395,6.69876429,651.5,647.5,2.23355675]
[1740064562589,4.29060013,651.49,647.5,2.23355675]
[1740064562794,4.29060013,651.48,647.5,2.23355675]
[1740064563090,4.29060013,651.47,647.51,3.07965671]
[1740064563292,4.29060013,651.46,647.52,2.23355675]
[1740064563495,4.29060013,651.45,647.52,2.23355675]
[1740064563690,4.00783279,651.44,647.52,2.23355675]
[1740064563896,1.13692474,649.83,648.26,1.14938822]
[1740064564190,3.24647963,649.82,648.26,1.14938822]
[1740064564398,1.13692474,649.83,648.26,1.14938822]
[1740064564793,3.24691814,649.82,648.26,1.14938822]
[1740064565090,3.24691814,649.81,648.26,1.14938822]
[1740064565296,3.24691814,649.8,648.26,1.14938822]
[1740064565598,3.24691814,649.79,648.26,1.14938822]
[1740064565788,1.13692474,649.83,648.26,1.14938822]
[1740064565789,3.24691814,649.78,648.26,1.14938822]
[1740064565991,5.6550823,649.77,648.26,1.14938822]
[1740064566196,3.24691814,649.76,648.26,1.14938822]
[1740064566998,3.24691814,649.75,648.25,1.14938822]
[1740064567295,3.24691814,649.74,648.25,1.14938822]
[1740064567498,3.24691814,649.73,648.25,1.14938822]
[1740064567696,3.24691814,649.72,648.25,1.14938822]
[1740064567897,5.6550823,649.71,648.25,1.14938822]
[1740064568097,3.24691814,649.7,648.25,1.14938822]
[1740064568298,3.24691814,649.69,648.25,1.14938822]
[1740064568500,3.24691814,649.68,648.25,1.14938822]
[1740064568698,3.24691814,649.67,648.25,1.14938822]
[1740064568895,3.24691814,649.66,648.25,1.14938822]
[1740064569096,3.24691814,649.65,648.25,1.14938822]
[1740064569295,5.6550823,649.64,648.25,1.14938822]
[1740064569500,3.24691814,649.63,648.25,1.14938822]
[1740064569700,3.24691814,649.62,648.25,1.14938822]
[1740064569900,3.24691814,649.61,648.25,1.14938822]
[1740064570201,2.40816416,649.64,648.25,1.14938822]
[1740064570403,3.24070282,649.63,648.25,1.14938822]
[1740064570604,3.24070282,649.63,648.04,1.14938822]
[1740064570605,3.24070282,649.62,648.13,1.14938822]
[1740064570798,3.24070282,649.61,648.13,1.14938822]
[1740064570997,2.40816416,649.64,648.13,1.14938822]
[1740064571196,2.40816416,649.61,648.13,1.14938822]
[1740064571603,1.13692474,649.73,648.13,1.14938822]
[1740064571803,3.24225269,649.72,648.13,1.14938822]
[1740064572099,3.24225269,649.71,648.13,1.14938822]
[1740064572301,3.24225269,649.7,648.13,1.14938822]
[1740064572497,2.40456455,649.71,648.13,1.14938822]
[1740064572701,1.6084242,649.7,648.13,1.14938822]
[1740064572902,1.6084242,649.7,648.26,1.14938822]
[1740064575501,1.6084242,649.7,648.01,1.14938822]
[1740064577308,1.6084242,649.7,648.05,1.14938822]
[1740064579309,1.6084242,649.7,648.21,1.14938822]
[1740064581913,1.6084242,649.7,648.0,1.14938822]
[1740064582606,1.13692474,650.35,648.0,1.14938822]
[1740064582810,0.28283189,650.34,648.0,1.14938822]
[1740064583211,3.52176285,650.33,648.0,1.14938822]
[1740064583407,4.28157998,650.32,648.0,1.14938822]
[1740064583712,4.2815853,650.31,648.0,1.14938822]
[1740064583906,4.2815853,650.3,648.0,1.14938822]
[1740064584104,4.2815853,650.29,648.0,1.14938822]
[1740064584407,3.5217741,650.28,648.0,1.14938822]
[1740064584611,3.5217741,650.27,648.0,1.14938822]
[1740064584806,3.5217741,650.26,648.0,1.14938822]
[1740064585111,3.23893096,650.25,648.0,1.14938822]
[1740064585308,3.5217355,650.24,648.0,1.14938822]
[1740064585509,3.5217355,650.23,648.0,1.14938822]
[1740064585706,5.92630005,650.22,648.0,1.14938822]
[1740064585915,1.13692474,649.65,648.1,1.14938822]
[1740064586806,3.23893096,649.64,648.1,1.14938822]
[1740064587010,1.13692474,649.65,648.1,1.14938822]
[1740064588612,1.13692474,649.86,648.1,1.14938822]
[1740064588811,1.13692474,649.86,648.05,1.14938822]
[1740064588812,1.60847996,649.64,648.05,1.14938822]
[1740064589206,1.13692474,649.86,648.05,1.14938822]
[1740064589412,1.6085543,649.63,648.05,1.14938822]
[1740064589710,1.13692474,649.86,648.05,1.14938822]
[1740064589913,1.60848615,649.62,648.05,1.14938822]
[1740064590111,1.13692474,649.86,648.05,1.14938822]
[1740064591005,1.60838084,649.85,648.05,1.14938822]
[1740064591414,1.60838084,649.85,648.03,1.14938822]
[1740064593615,3.23889325,649.84,648.03,1.14938822]
[1740064593812,3.23889325,649.83,648.03,1.14938822]
[1740064594011,3.23889325,649.82,648.03,1.14938822]
[1740064594213,3.23889325,649.81,648.03,1.14938822]
[1740064594415,3.23889325,649.8,648.03,1.14938822]
[1740064594609,3.23889325,649.79,648.03,1.14938822]
[1740064594813,3.23889325,649.78,648.03,1.14938822]
[1740064595012,3.23889325,649.77,648.03,1.14938822]
[1740064595215,1.60838084,649.85,648.03,1.14938822]
[1740064596410,1.13692474,649.82,648.37,1.14938822]
[1740064599414,1.60838084,649.85,648.47,1.14938822]
[1740064601816,1.60838084,649.85,648.38,1.14938822]
[1740064604519,1.60838084,649.85,648.3,1.14938822]
[1740064607023,1.60838084,649.85,648.37,1.14938822]
[1740064609028,1.60838084,649.85,648.05,1.14938822]
[1740064611329,1.60838084,649.85,648.01,1.14938822]
[1740064616930,1.60838084,649.85,648.18,1.14938822]
[1740064622833,1.60838084,649.85,648.27,1.14938822]
[1740064625133,1.60838084,649.85,648.44,1.14938822]
[1740064627842,1.60838084,649.85,648.43,1.14938822]
[1740064630339,1.60838084,649.85,648.52,1.14938822]
[1740064632643,1.60838084,649.85,648.46,1.14938822]
[1740064635842,1.60838084,649.85,648.48,1.14938822]
[1740064640348,2.74530558,649.85,648.3,1.14938822]
[1740064641751,5.63232372,649.84,648.3,1.14938822]
[1740064642053,2.39854825,649.84,648.3,1.14938822]
[1740064642953,1.60838084,649.85,648.04,1.14938822]
[1740064645554,1.60838084,649.85,648.4,1.14938822]
[1740064647758,1.60838084,649.85,648.49,1.14938822]
[1740064651663,1.60838084,649.85,648.56,1.14938822]
[1740064654262,1.60838084,649.85,648.52,1.14938822]
[1740064657361,1.60838084,649.85,648.43,1.14938822]
[1740064659870,1.60838084,649.85,648.61,1.14938822]
[1740064663071,1.60838084,649.85,648.5,1.14938822]
[1740064665370,1.60838084,649.85,648.49,1.14938822]
[1740064667973,1.60838084,649.85,648.54,1.14938822]
[1740064670277,1.60838084,649.85,648.51,1.14938822]
[1740064672380,1.60838084,649.85,648.45,1.14938822]
[1740064675380,1.60838084,649.85,648.6,1.14938822]
[1740064677883,1.60838084,649.85,648.62,1.14938822]
[1740064681489,1.60838084,649.85,648.21,1.37926587]
[1740064681490,1.60838084,649.85,648.68,1.14938822]
[1740064683693,1.60838084,649.85,648.69,1.14938822]
[1740064686496,1.60838084,649.85,648.56,1.14938822]
[1740064688595,1.60838084,649.85,648.66,1.14938822]
[1740064690797,1.60838084,649.85,648.62,1.14938822]
[1740064693103,1.60838084,649.85,648.65,1.14938822]
[1740064696510,1.60838084,649.85,648.69,1.14938822]
[1740064699310,1.60838084,649.85,648.48,1.14938822]
[1740064703508,1.60838084,649.85,648.63,1.14938822]
[1740064707409,1.60838084,649.85,648.65,1.14938822]
[1740064710416,1.60838084,649.85,648.78,1.14938822]
[1740064713513,1.60838084,649.85,648.72,1.14938822]
[1740064715622,1.60838084,649.85,648.68,1.14938822]
[1740064718020,1.60838084,649.85,648.46,1.14938822]
[1740064721023,1.60838084,649.85,648.49,1.14938822]
[1740064723024,1.60838084,649.85,648.7,1.14938822]
[1740064724924,1.60838084,649.85,648.84,1.14938822]
[1740064727228,1.60838084,649.85,648.81,1.14938822]
[1740064729830,1.60838084,649.85,648.17,2.34666762]
[1740064729831,1.60838084,649.85,648.72,1.14938822]
[1740064732730,1.60838084,649.85,648.7,1.14938822]
[1740064735137,1.60838084,649.85,648.75,1.14938822]
[1740064740838,0.3077728,649.83,648.75,1.14938822]
[1740064744037,0.3077728,649.83,648.22,2.34666762]
[1740064744038,0.3077728,649.83,648.81,1.14938822]
[1740064747143,0.3077728,649.83,648.71,1.14938822]
[1740064749640,0.3077728,649.83,648.61,1.14938822]
[1740064752550,0.3077728,649.83,647.95,2.34666762]
[1740064752551,0.3077728,649.83,648.29,1.14938822]
[1740064754552,0.29762387,649.83,648.29,1.14938822]
[1740064756048,0.29762387,649.83,648.32,1.14938822]
[1740064757454,0.29762387,649.83,648.21,1.14938822]
[1740064760553,0.29762387,649.83,648.24,1.14938822]
[1740064763259,0.29762387,649.83,648.3,1.14938822]
[1740064766352,0.29762387,649.83,648.46,1.14938822]
[1740064768762,0.29762387,649.83,648.47,1.14938822]
[1740064772060,0.29762387,649.83,648.65,1.14938822]
[1740064774364,1.60838084,649.85,648.68,1.14938822]
[1740064776766,1.60838084,649.85,648.64,1.14938822]
[1740064778868,1.60838084,649.85,648.58,1.14938822]
[1740064782673,1.60838084,649.85,648.52,1.14938822]
[1740064785580,1.60838084,649.85,648.43,1.14938822]
[1740064788278,0.3077728,649.83,648.43,1.14938822]
[1740064788678,0.3077728,649.83,648.11,1.14938822]
[1740064788679,0.3077728,649.83,648.42,1.14938822]
[1740064791888,0.3077728,649.83,648.5,1.14938822]
[1740064794089,0.3077728,649.83,648.63,1.14938822]
[1740064796889,0.3077728,649.83,648.67,1.14938822]
[1740064799692,0.3077728,649.83,648.6,1.14938822]
[1740064802692,0.3077728,649.83,648.01,0.8462888]
[1740064802693,0.3077728,649.83,648.74,1.14938822]
[1740064806599,0.3077728,649.83,648.87,1.14938822]
[1740064811097,1.60673474,649.82,648.87,1.14938822]
[1740064811304,0.30778701,649.8,648.87,1.14938822]
[1740064812698,0.30778701,649.8,648.88,1.14938822]
[1740064816107,0.30778701,649.8,648.86,1.14938822]
[1740064818911,0.30778701,649.8,648.92,1.14938822]
[1740064821414,0.30778701,649.8,648.91,1.14938822]
[1740064824115,0.30778701,649.8,648.97,1.14938822]
[1740064827313,0.30778701,649.8,649.0,1.14938822]
[1740064830318,0.30778701,649.8,648.87,1.14938822]
[1740064832928,0.30778701,649.8,648.89,1.14938822]
[1740064835822,0.30778701,649.8,648.91,1.14938822]
[1740064838029,0.30778701,649.8,648.22,2.34666762]
[1740064838030,0.30778701,649.8,648.96,1.14938822]
[1740064841327,0.30778701,649.8,648.97,1.14938822]
[1740064846743,0.30778701,649.8,649.02,1.14938822]
[1740064850040,0.30778701,649.8,648.96,1.14938822]
[1740064851944,0.30778701,649.8,648.97,1.14938822]
[1740064854551,0.30778701,649.8,649.01,1.14938822]
[1740064857948,0.30778701,649.8,648.36,2.34666762]
[1740064857949,0.30778701,649.8,649.04,1.14938822]
[1740064860356,0.30778701,649.8,648.34,2.34666762]
[1740064860357,0.30778701,649.8,649.1,1.14938822]
[1740064863156,0.30778701,649.8,648.84,1.14938822]
[1740064866057,0.30778701,649.8,648.81,1.14938822]
[1740064869364,0.30778701,649.8,648.89,1.14938822]
[1740064871567,0.30778701,649.8,648.7,1.14938822]
[1740064871568,0.30778701,649.8,648.86,1.14938822]
[1740064874976,0.30778701,649.8,648.82,1.14938822]
[1740064877677,0.30778701,649.8,648.94,1.14938822]
[1740064880467,0.30778701,649.8,648.9,1.14938822]
[1740064882672,0.30778701,649.8,648.37,1.37926587]
[1740064882673,0.30778701,649.8,648.87,1.14938822]
[1740064885375,0.30778701,649.8,648.91,1.14938822]
[1740064888475,0.30778701,649.8,648.86,1.14938822]
[1740064890875,0.30778701,649.8,648.78,1.14938822]
[1740064893079,0.30778701,649.8,648.79,1.14938822]
[1740064897377,0.30778701,649.8,648.8,1.14938822]
[1740064899485,0.30778701,649.8,648.77,1.14938822]
[1740064902582,0.30778701,649.8,648.83,1.14938822]
[1740064905287,0.30778701,649.8,648.78,1.14938822]
[1740064906687,1.60695114,649.79,648.78,1.14938822]
[1740064906887,0.30780122,649.77,648.78,1.14938822]
[1740064907688,0.30780122,649.77,648.84,1.14938822]
[1740064910985,0.30780122,649.77,648.82,1.14938822]
[1740064914097,0.30780122,649.77,648.86,1.14938822]
[1740064916599,0.30780122,649.77,648.89,1.14938822]
[1740064918797,0.30780122,649.77,648.9,1.14938822]
[1740064921798,0.30780122,649.77,648.72,1.14938822]
[1740064924701,0.30780122,649.77,648.48,1.14938822]
[1740064927402,0.30780122,649.77,648.4,1.14938822]
[1740064931206,0.30780122,649.77,648.3,1.14938822]
[1740064934406,0.30780122,649.77,648.32,1.14938822]
[1740064937511,0.30780122,649.77,648.51,1.14938822]
[1740064940413,0.30780122,649.77,648.6,1.14938822]
[1740064943612,0.30780122,649.77,648.64,1.14938822]
[1740064946321,0.30780122,649.77,648.51,1.14938822]
[1740064948824,0.30780122,649.77,648.38,1.14938822]
[1740064951730,0.30780122,649.77,648.35,1.14938822]
[1740064953724,0.30780122,649.77,648.38,1.14938822]
[1740064956531,0.30780122,649.77,648.26,1.14938822]
[1740064959232,0.30780122,649.77,648.2,1.14938822]
[1740064963028,3.23674378,649.76,648.12,1.14938822]
[1740064963229,2.7108048,649.77,648.12,1.14938822]
[1740064963535,5.94754858,649.77,648.12,1.14938822]
[1740064963735,0.30781543,649.74,648.12,1.14938822]
[1740064963929,3.23706557,649.73,648.12,1.14938822]
[1740064964132,0.30782964,649.71,648.12,1.14938822]
[1740064964530,1.60835606,649.7,648.12,1.14938822]
[1740064964735,0.30784386,649.68,648.12,1.14938822]
[1740064966837,0.30784386,649.68,648.2,1.14938822]
[1740064970136,0.30784386,649.68,647.98,1.14938822]
[1740064974442,0.30784386,649.68,647.95,1.14938822]
[1740064977943,0.30784386,649.68,647.86,1.14938822]
[1740064979741,0.30784386,649.68,647.84,1.14938822]
[1740064983249,0.30784386,649.68,647.83,1.14938822]
[1740064984550,0.28298644,649.67,647.83,1.14938822]
[1740064984750,0.30785807,649.65,647.83,1.14938822]
[1740064985146,0.28300351,649.64,647.83,1.14938822]
[1740064985349,0.30787229,649.62,647.83,1.14938822]
[1740064985550,0.28300351,649.61,647.83,1.14938822]
[1740064985751,0.28301552,649.6,647.83,1.14938822]
[1740064986050,0.30788651,649.59,647.83,1.14938822]
[1740064986248,0.28301552,649.58,647.83,1.14938822]
[1740064986952,0.28301552,649.58,647.18,0.8462888]
[1740064986953,0.30790073,649.56,647.49,1.14938822]
[1740064987250,0.28301552,649.55,647.49,1.14938822]
[1740064987446,0.30795288,649.45,647.49,1.14938822]
[1740064990856,0.30795288,649.45,647.16,1.14938822]
[1740064993248,0.30795288,649.45,646.99,1.14938822]
[1740064995753,0.30795288,649.45,646.87,1.14938822]
[1740064996150,1.61007376,649.44,646.87,1.14938822]
[1740064997056,0.30801453,649.32,646.87,1.14938822]
[1740064999054,0.30801453,649.32,646.76,1.14938822]
[1740065003259,0.30801453,649.32,646.75,1.14938822]
[1740065004658,0.28312148,649.31,646.75,1.14938822]
[1740065004858,0.30807621,649.19,646.75,1.14938822]
[1740065006864,0.30807621,649.19,646.78,1.14938822]
[1740065008467,0.28317463,649.18,646.78,1.14938822]
[1740065008668,0.30813792,649.06,646.78,1.14938822]
[1740065009566,0.28320289,649.05,646.78,1.14938822]
[1740065009768,0.28320289,649.05,646.38,1.14938822]
[1740065009769,0.28320289,649.05,646.7,1.14938822]
[1740065010066,0.3081949,648.94,646.7,1.14938822]
[1740065012266,0.3081949,648.94,646.67,1.14938822]
[1740065015071,0.28322634,648.93,646.67,1.14938822]
[1740065015673,0.28322634,648.93,646.65,1.14938822]
[1740065016071,0.3082519,648.82,646.65,1.14938822]
[1740065016771,1.61077553,648.81,646.65,1.14938822]
[1740065017166,0.30830417,648.71,646.65,1.14938822]
[1740065017668,0.30830417,648.71,646.39,1.14938822]
[1740065017669,0.30830417,648.71,646.9,1.14938822]
[1740065020578,0.30830417,648.71,647.11,1.14938822]
[1740065026476,0.30830417,648.71,647.03,1.14938822]
[1740065027082,1.61078175,648.7,647.03,1.14938822]
[1740065027383,0.30831843,648.68,647.03,1.14938822]
[1740065029184,0.30831843,648.68,646.99,1.14938822]
[1740065031782,0.30831843,648.68,647.39,1.14938822]
[1740065033981,0.30831843,648.68,647.25,1.14938822]
[1740065038282,0.30831843,648.68,647.36,1.14938822]
[1740065040688,0.30831843,648.68,647.34,1.14938822]
[1740065046189,0.30831843,648.68,647.3,1.14938822]
[1740065048993,0.30831843,648.68,647.21,1.14938822]
[1740065051195,0.30831843,648.68,647.22,1.14938822]
[1740065055199,0.30831843,648.68,647.45,1.14938822]
[1740065058100,0.30831843,648.68,647.47,1.14938822]
[1740065060600,0.30831843,648.68,647.7,1.14938822]
[1740065063701,0.30831843,648.68,647.51,1.14938822]
[1740065065805,0.30831843,648.68,647.33,1.14938822]